fUSD/lending_fUSD_20250702
["ID","MTS","AMOUNT","RATE_DAILY","PERIOD"]
[368987723,1751425866508,-293.84933852,0.00017794,2]
[368987724,1751425866517,-490.0,0.00017794,2]
[368987725,1751425866527,-1289.27,0.00017794,2]
[368987726,1751425866536,-493.83914071,0.00017795,2]
[368987727,1751425866546,-490.0,0.00017795,2]
[368987728,1751425866555,-207.4,0.00017797,2]
[368987729,1751425866564,-490.0,0.00017806,2]
[368987730,1751425866573,-363.04132179,0.00017806,2]
[368987731,1751425866583,-581.41669977,0.00017806,2]
[368987732,1751425866592,-826.18,0.00017806,2]
[368987733,1751425866602,-523.1,0.00017806,2]
[368987734,1751425866611,-873.11,0.00017806,2]
[368987735,1751425866620,-490.0,0.00017806,2]
[368987736,1751425866630,-490.0,0.00017806,2]
[368987737,1751425866640,-711.44,0.00017806,2]
[368987738,1751425866651,-732.692467,0.00017806,2]
[368987739,1751425866663,-1910.64,0.00017806,2]
[368987740,1751425866673,-787.614126,0.00017806,2]
[368987741,1751425866683,-808.436336,0.00017806,2]
[368987742,1751425866695,-1281.91,0.00017806,2]
[368987743,1751425866705,-1441.48,0.00017806,2]
[368987744,1751425866714,-490.0,0.00017806,2]
[368987745,1751425866724,-490.0,0.00017806,2]
[368987746,1751425866735,-490.0,0.00017806,2]
[368987747,1751425866745,-490.0,0.00017806,2]
[368987748,1751425866754,-490.0,0.00017806,2]
[368987749,1751425866763,-490.0,0.00017806,2]
[368987750,1751425866774,-2181.75,0.00017806,2]
[368987751,1751425866783,-490.0,0.00017806,2]
[368987752,1751425866792,-490.0,0.00017806,2]
[368987753,1751425866801,-490.0,0.00017806,2]
[368987754,1751425866810,-490.0,0.00017806,2]
[368987755,1751425866820,-490.0,0.00017806,2]
[368987756,1751425866829,-490.0,0.00017806,2]
[368987757,1751425866840,-1458.32,0.00017806,2]
[368987758,1751425866851,-539.81,0.00017806,2]
[368987759,1751425866861,-1499.32,0.00017806,2]
[368987760,1751425866870,-490.0,0.00017806,2]
[368987761,1751425866880,-490.0,0.00017806,2]
[368987762,1751425866889,-490.0,0.00017806,2]
[368987763,1751425866899,-490.0,0.00017806,2]
[368987764,1751425866908,-518.34,0.00017806,2]
[368987765,1751425866918,-490.0,0.00017806,2]
[368987766,1751425866928,-772.63,0.00017806,2]
[368987767,1751425866938,-490.0,0.00017806,2]
[368987768,1751425866948,-1088.48,0.00017806,2]
[368987769,1751425866958,-665.8,0.00017806,2]
[368987770,1751425866968,-490.0,0.00017806,2]
[368987771,1751425866977,-490.0,0.00017806,2]
[368987772,1751425866988,-619.43847094,0.00017806,2]
[368987773,1751425866998,-1049.17,0.00017806,2]
[368987774,1751425867008,-490.0,0.00017806,2]
[368987775,1751425867018,-705.0,0.00017806,2]
[368987776,1751425867028,-2171.34,0.00017806,2]
[368987777,1751425867037,-490.0,0.00017806,2]
[368987778,1751425867047,-490.0,0.00017806,2]
[368987779,1751425867056,-490.0,0.00017806,2]
[368987780,1751425867066,-490.0,0.00017806,2]
[368987781,1751425867075,-582.32,0.00017806,2]
[368987782,1751425867084,-2581.32,0.00017806,2]
[368987783,1751425867095,-490.0,0.00017806,2]
[368987784,1751425867105,-591.37,0.00017806,2]
[368987785,1751425867116,-984.0,0.00017806,2]
[368987786,1751425867126,-490.0,0.00017806,2]
[368987787,1751425867136,-363.37543,0.00017806,2]
[368987788,1751425867145,-490.0,0.00017806,2]
[368987789,1751425867155,-490.0,0.00017806,2]
[368987790,1751425867164,-391.037165,0.00017806,2]
[368987791,1751425867174,-730.02,0.00017806,2]
[368987792,1751425867183,-490.0,0.00017806,2]
[368987793,1751425867194,-404.218169,0.00017806,2]
[368987794,1751425867204,-500.0,0.00017806,2]
[368987795,1751425867217,-490.0,0.00017806,2]
[368987796,1751425867227,-490.0,0.00017806,2]
[368987797,1751425867238,-984.67,0.00017806,2]
[368987798,1751425867247,-490.0,0.00017807,2]
[368987799,1751425867258,-490.0,0.00017807,2]
[368987800,1751425867268,-490.0,0.00017807,2]
[368987801,1751425867277,-490.0,0.00017807,2]
[368987802,1751425867288,-243.54364673,0.00017807,2]
[368987803,1751425867298,-490.0,0.00017807,2]
[368987804,1751425867308,-490.0,0.00017807,2]
[368987805,1751425867319,-490.0,0.00017807,2]
[368987806,1751425867329,-490.0,0.00017807,2]
[368987807,1751425867338,-490.0,0.00017807,2]
[368987808,1751425867348,-537.63348759,0.00017807,2]
[368987809,1751425867358,-490.0,0.00017807,2]
[368987810,1751425867368,-490.0,0.00017807,2]
[368987811,1751425867377,-490.0,0.00017807,2]
[368987812,1751425867386,-490.0,0.00017807,2]
[368987813,1751425867396,-490.0,0.00017807,2]
[368987814,1751425867405,-490.0,0.00017807,2]
[368987815,1751425867414,-490.0,0.00017807,2]
[368987816,1751425867423,-490.0,0.00017807,2]
[368987817,1751425867433,-490.0,0.00017807,2]
[368987818,1751425867443,-490.0,0.00017807,2]
[368987819,1751425867452,-588.74,0.00017807,2]
[368987820,1751425867461,-490.0,0.00017807,2]
[368987821,1751425867471,-490.0,0.00017807,2]
[368987822,1751425867480,-490.0,0.00017807,2]
[368987823,1751425867489,-490.0,0.00017807,2]
[368987824,1751425867498,-490.0,0.00017807,2]
[368987825,1751425867507,-490.0,0.00017807,2]
[368987826,1751425867517,-490.0,0.00017807,2]
[368987827,1751425867526,-490.0,0.00017807,2]
[368987828,1751425867536,-490.0,0.00017807,2]
[368987829,1751425867545,-490.0,0.00017807,2]
[368987830,1751425867555,-490.0,0.00017807,2]
[368987831,1751425867565,-162.35483317,0.00017807,2]
[368987832,1751425867575,-490.0,0.00017807,2]
[368987833,1751425867584,-490.0,0.00017807,2]
[368987834,1751425867594,-490.0,0.00017807,2]
[368987835,1751425867603,-490.0,0.00017807,2]
[368987836,1751425867612,-321.9619102,0.00017807,2]
[368987837,1751425867621,-490.0,0.00017807,2]
[368987838,1751425867631,-762.88,0.00017807,2]
[368987839,1751425867640,-490.0,0.00017807,2]
[368987840,1751425867650,-490.0,0.00017807,2]
[368987841,1751425867660,-490.0,0.00017807,2]
[368987842,1751425867669,-546.56,0.00017807,2]
[368987843,1751425867680,-490.0,0.00017807,2]
[368987844,1751425867690,-490.0,0.00017807,2]
[368987845,1751425867699,-490.0,0.00017807,2]
[368987846,1751425867708,-281.47506866,0.00017807,2]
[368987847,1751425867718,-681.12,0.00017807,2]
[368987848,1751425867727,-1201.76,0.00017807,2]
[368987849,1751425867736,-490.0,0.00017807,2]
[368987850,1751425867746,-490.0,0.00017807,2]
[368987851,1751425867755,-490.0,0.00017807,2]
[368987852,1751425867764,-490.0,0.00017807,2]
[368987853,1751425867773,-490.0,0.00017807,2]
[368987854,1751425867782,-407.94608222,0.00017807,2]
[368987855,1751425867791,-490.0,0.00017807,2]
[368987856,1751425867800,-490.0,0.00017807,2]
[368987857,1751425867810,-490.0,0.00017807,2]
[368987858,1751425867819,-490.0,0.00017807,2]
[368987859,1751425867830,-1121.74,0.00017807,2]
[368987860,1751425867839,-612.44,0.00017807,2]
[368987861,1751425867850,-498.88572435,0.00017807,2]
[368987862,1751425867861,-490.0,0.00017807,2]
[368987863,1751425867870,-490.0,0.00017807,2]
[368987864,1751425867879,-490.0,0.00017807,2]
[368987865,1751425867890,-490.0,0.00017807,2]
[368987866,1751425867901,-490.0,0.00017807,2]
[368987867,1751425867911,-723.51,0.00017807,2]
[368987868,1751425867923,-490.0,0.00017807,2]
[368987869,1751425867933,-490.0,0.00017807,2]
[368987870,1751425867945,-490.0,0.00017807,2]
[368987871,1751425867955,-490.0,0.00017807,2]
[368987872,1751425867965,-490.0,0.00017807,2]
[368987873,1751425867975,-490.0,0.00017807,2]
[368987874,1751425867984,-490.0,0.00017807,2]
[368987875,1751425867993,-1072.81,0.00017807,2]
[368987876,1751425868002,-490.0,0.00017807,2]
[368987877,1751425868012,-490.0,0.00017807,2]
[368987878,1751425868022,-490.0,0.00017807,2]
[368987879,1751425868032,-490.0,0.00017807,2]
[368987880,1751425868041,-490.0,0.00017807,2]
[368987881,1751425868051,-1292.01,0.00017807,2]
[368987882,1751425868060,-490.0,0.00017807,2]
[368987883,1751425868069,-490.0,0.00017807,2]
[368987884,1751425868079,-724.77,0.00017807,2]
[368987885,1751425868088,-490.0,0.00017807,2]
[368987886,1751425868098,-572.1614278,0.00017807,2]
[368987887,1751425868108,-490.0,0.00017807,2]
[368987888,1751425868118,-490.0,0.00017807,2]
[368987889,1751425868128,-490.0,0.00017807,2]
[368987890,1751425868137,-490.0,0.00017807,2]
[368987891,1751425868147,-490.0,0.00017807,2]
[368987892,1751425868158,-490.0,0.00017807,2]
[368987893,1751425868167,-490.0,0.00017807,2]
[368987894,1751425868176,-490.0,0.00017807,2]
[368987895,1751425868187,-411.54653233,0.00017807,2]
[368987896,1751425868196,-490.0,0.00017807,2]
[368987897,1751425868205,-490.0,0.00017807,2]
[368987898,1751425868215,-490.0,0.00017807,2]
[368987899,1751425868226,-490.0,0.00017807,2]
[368987900,1751425868238,-611.77,0.00017807,2]
[368987901,1751425868249,-490.0,0.00017807,2]
[368987902,1751425868259,-818.32,0.00017807,2]
[368987903,1751425868271,-906.48,0.00017807,2]
[368987904,1751425868280,-490.0,0.00017807,2]
[368987905,1751425868290,-490.0,0.00017807,2]
[368987906,1751425868299,-759.77,0.00017807,2]
[368987907,1751425868309,-566.94,0.00017807,2]
[368987908,1751425868318,-490.0,0.00017807,2]
[368987909,1751425868328,-490.0,0.00017807,2]
[368987910,1751425868338,-490.0,0.00017807,2]
[368987911,1751425868347,-490.0,0.00017807,2]
[368987912,1751425868358,-490.0,0.00017807,2]
[368987913,1751425868367,-490.0,0.00017807,2]
[368987914,1751425868377,-309.2784657,0.00017807,2]
[368987915,1751425868387,-490.0,0.00017807,2]
[368987916,1751425868398,-490.0,0.00017807,2]
[368987917,1751425868407,-507.97799726,0.00017807,2]
[368987918,1751425868416,-490.0,0.00017807,2]
[368987919,1751425868426,-460.0451843,0.00017807,2]
[368987920,1751425868436,-490.0,0.00017807,2]
[368987921,1751425868446,-627.67,0.00017807,2]
[368987922,1751425868456,-490.0,0.00017807,2]
[368987923,1751425868467,-490.0,0.00017807,2]
[368987924,1751425868478,-490.0,0.00017807,2]
[368987925,1751425868488,-562.73,0.00017807,2]
[368987926,1751425868497,-441.39111583,0.00017807,2]
[368987927,1751425868507,-490.0,0.00017807,2]
[368987928,1751425868516,-455.74459432,0.00017807,2]
[368987929,1751425868525,-490.0,0.00017807,2]
[368987930,1751425868535,-490.0,0.00017807,2]
[368987931,1751425868545,-490.0,0.00017807,2]
[368987932,1751425868554,-490.0,0.00017807,2]
[368987933,1751425868565,-490.0,0.00017807,2]
[368987934,1751425868574,-490.0,0.00017807,2]
[368987935,1751425868584,-490.0,0.00017807,2]
[368987936,1751425868594,-5663.42,0.00017807,2]
[368987937,1751425868603,-493.27,0.00017807,2]
[368987938,1751425868613,-221.90345313,0.00017807,2]
[368987939,1751425868622,-490.0,0.00017807,2]
[368987940,1751425868631,-613.36657481,0.00017807,2]
[368987941,1751425868641,-1640.69,0.00017807,2]
[368987942,1751425868651,-490.0,0.00017807,2]
[368987943,1751425868665,-1173.34,0.00017807,2]
[368987944,1751425868678,-553.96,0.00017807,2]
[368987945,1751425868688,-406.85470506,0.00017807,2]
[368987946,1751425868698,-4527.71,0.00017807,2]
[368987947,1751425868707,-542.11,0.00017807,2]
[368987948,1751425868717,-1517.8,0.00017807,2]
[368987949,1751425868726,-490.0,0.00017807,2]
[368987950,1751425868738,-924.37,0.00017807,2]
[368987951,1751425868748,-981.28,0.00017807,2]
[368987952,1751425868759,-490.0,0.00017807,2]
[368987953,1751425868768,-490.0,0.00017807,2]
[368987954,1751425868778,-490.0,0.00017808,2]
[368987955,1751425868788,-490.0,0.00017808,2]
[368987956,1751425868797,-490.0,0.00017808,2]
[368987957,1751425868807,-490.0,0.00017808,2]
[368987958,1751425868816,-366.78416397,0.00017808,2]
[368987959,1751425868825,-490.0,0.00017808,2]
[368987960,1751425868836,-490.0,0.00017808,2]
[368987961,1751425868847,-490.0,0.00017808,2]
[368987962,1751425868856,-490.0,0.00017808,2]
[368987963,1751425868865,-490.0,0.00017808,2]
[368987964,1751425868875,-490.0,0.00017808,2]
[368987965,1751425868884,-490.0,0.00017808,2]
[368987966,1751425868893,-490.0,0.00017808,2]
[368987967,1751425868903,-490.0,0.00017808,2]
[368987968,1751425868913,-490.0,0.00017808,2]
[368987969,1751425868923,-490.0,0.00017808,2]
[368987970,1751425868932,-490.0,0.00017808,2]
[368987971,1751425868941,-490.0,0.00017808,2]
[368987972,1751425868950,-490.0,0.00017808,2]
[368987973,1751425868961,-198.51090912,0.00017808,2]
[368987974,1751425868970,-490.0,0.00017808,2]
[368987975,1751425868979,-627.23,0.00017808,2]
[368987976,1751425868989,-490.0,0.00017808,2]
[368987977,1751425868998,-490.0,0.00017808,2]
[368987978,1751425869008,-512.7458857,0.00017868,2]
[368987979,1751425869017,-1027.29031023,0.00017868,2]
[368987980,1751425869026,-168.0,0.00017882,2]
[368987981,1751425869035,-3200.0,0.000179,6]
[368987982,1751425869044,-490.0,0.00017905,2]
[368987983,1751425869054,-1722.53,0.00017905,2]
[368987984,1751425869063,-532.19,0.00017905,2]
[368987985,1751425869074,-2559.13,0.00017905,2]
[368987986,1751425869083,-684.78,0.00017905,2]
[368987987,1751425869094,-913.18,0.00017905,2]
[368987988,1751425869104,-1627.73,0.00017905,2]
[368987989,1751425869115,-1589.47,0.00017905,2]
[368987990,1751425869125,-490.0,0.00017905,2]
[368987991,1751425869135,-1286.08,0.00017905,2]
[368987992,1751425869146,-490.0,0.00017905,2]
[368987993,1751425869157,-1178.53,0.00017905,2]
[368987994,1751425869166,-32854.68,0.00017905,2]
[368987995,1751425869177,-1687.13,0.00017905,2]
[368987996,1751425869187,-168.0,0.00017914,2]
[368987997,1751425869197,-151.91033531,0.00017929,2]
[368987998,1751425869206,-1081.0,0.00017933,2]
[368987999,1751425869216,-420.0,0.00017962,2]
[368988000,1751425869226,-562.0,0.00017964,2]
[368988001,1751425869235,-400.0,0.0001797,2]
[368988002,1751425869246,-401.00951335,0.0001797,2]
[368988003,1751425869256,-150.0,0.00017973,2]
[368988004,1751425869265,-150.0,0.00017973,2]
[368988005,1751425869276,-1000.0,0.00017999,2]
[368988006,1751425869285,-28736.53,0.00018,2]
[368988007,1751425869295,-200.0,0.00018,2]
[368988008,1751425869304,-976.0,0.00018061,2]
[368988009,1751425869315,-500.0,0.00018061,2]
[368988010,1751425869325,-202.98098031,0.00018061,2]
[368988011,1751425869335,-171.68517336,0.00018061,2]
[368988012,1751425869345,-150.0,0.00018061,2]
[368988013,1751425869354,-923.79,0.00018067,2]
[368988014,1751425869363,-462.23226301,0.00018067,2]
[368988015,1751425869374,-490.0,0.00018067,2]
[368988016,1751425869383,-490.0,0.00018067,2]
[368988017,1751425869393,-490.0,0.00018067,2]
[368988018,1751425869402,-616.73,0.00018067,2]
[368988019,1751425869412,-1094.42,0.00018067,2]
[368988020,1751425869421,-650.2,0.00018067,2]
[368988021,1751425869432,-555.89605264,0.00018067,2]
[368988022,1751425869442,-1417.95,0.00018067,2]
[368988023,1751425869452,-1075.57,0.00018067,2]
[368988024,1751425869465,-1000.0,0.00018067,2]
[368988025,1751425869475,-1131.04,0.00018067,2]
[368988026,1751425869485,-1992.45,0.00018067,2]
[368988027,1751425869496,-490.0,0.00018067,2]
[368988028,1751425869506,-490.0,0.00018067,2]
[368988029,1751425869682,-490.0,0.00018067,2]
[368988030,1751425869692,-659.49,0.00018067,2]
[368988031,1751425869702,-1480.33,0.00018067,2]
[368988032,1751425869712,-490.0,0.00018067,2]
[368988033,1751425869722,-391.60031919,0.00018067,2]
[368988034,1751425869732,-490.0,0.00018067,2]
[368988035,1751425869742,-490.0,0.00018068,2]
[368988036,1751425869753,-1289.27,0.00018068,2]
[368988037,1751425869763,-1500.0,0.00018068,2]
[368988038,1751425869772,-490.0,0.00018069,2]
[368988039,1751425869782,-376.54,0.0001808,2]
[368988040,1751425869792,-826.18,0.0001808,2]
[368988041,1751425869801,-523.1,0.0001808,2]
[368988042,1751425869810,-873.11,0.0001808,2]
[368988043,1751425869820,-490.0,0.0001808,2]
[368988044,1751425869829,-490.0,0.0001808,2]
[368988045,1751425869839,-711.44,0.0001808,2]
[368988046,1751425869848,-168.301424,0.0001808,2]
[368988047,1751425869858,-732.692467,0.0001808,2]
[368988048,1751425869869,-1910.64,0.0001808,2]
[368988049,1751425869879,-787.614126,0.0001808,2]
[368988050,1751425869888,-808.436336,0.0001808,2]
[368988051,1751425869898,-1281.91,0.0001808,2]
[368988052,1751425869907,-1441.48,0.0001808,2]
[368988053,1751425869917,-490.0,0.0001808,2]
[368988054,1751425869926,-490.0,0.0001808,2]
[368988055,1751425869936,-490.0,0.0001808,2]
[368988056,1751425869946,-490.0,0.0001808,2]
[368988057,1751425869955,-490.0,0.0001808,2]
[368988058,1751425869966,-490.0,0.0001808,2]
[368988059,1751425869977,-2181.75,0.0001808,2]
[368988060,1751425869987,-490.0,0.0001808,2]
[368988061,1751425869997,-490.0,0.0001808,2]
[368988062,1751425870007,-490.0,0.0001808,2]
[368988063,1751425870017,-490.0,0.0001808,2]
[368988064,1751425870028,-490.0,0.0001808,2]
[368988065,1751425870038,-490.0,0.0001808,2]
[368988066,1751425870047,-1458.32,0.0001808,2]
[368988067,1751425870057,-539.81,0.0001808,2]
[368988068,1751425870068,-1499.32,0.0001808,2]
[368988069,1751425870078,-490.0,0.0001808,2]
[368988070,1751425870088,-490.0,0.0001808,2]
[368988071,1751425870098,-490.0,0.0001808,2]
[368988072,1751425870109,-490.0,0.0001808,2]
[368988073,1751425870118,-518.34,0.0001808,2]
[368988074,1751425870131,-443.59918218,0.0001808,2]
[368988075,1751425870141,-772.63,0.0001808,2]
[368988076,1751425870151,-490.0,0.0001808,2]
[368988077,1751425870162,-1088.48,0.0001808,2]
[368988078,1751425870172,-665.8,0.0001808,2]
[368988079,1751425870182,-490.0,0.0001808,2]
[368988080,1751425870192,-490.0,0.0001808,2]
[368988081,1751425870202,-1049.17,0.0001808,2]
[368988082,1751425870211,-490.0,0.0001808,2]
[368988083,1751425870221,-705.0,0.0001808,2]
[368988084,1751425870231,-2171.34,0.0001808,2]
[368988085,1751425870240,-490.0,0.0001808,2]
[368988086,1751425870249,-490.0,0.0001808,2]
[368988087,1751425870258,-490.0,0.0001808,2]
[368988088,1751425870268,-490.0,0.0001808,2]
[368988089,1751425870278,-582.32,0.0001808,2]
[368988090,1751425870288,-2581.32,0.0001808,2]
[368988091,1751425870297,-490.0,0.0001808,2]
[368988092,1751425870306,-591.37,0.0001808,2]
[368988093,1751425870316,-984.0,0.0001808,2]
[368988094,1751425870326,-363.37543,0.0001808,2]
[368988095,1751425870335,-490.0,0.0001808,2]
[368988096,1751425870345,-490.0,0.0001808,2]
[368988097,1751425870354,-490.0,0.0001808,2]
[368988098,1751425870364,-391.037165,0.0001808,2]
[368988099,1751425870376,-730.02,0.0001808,2]
[368988100,1751425870386,-490.0,0.0001808,2]
[368988101,1751425870396,-404.218169,0.0001808,2]
[368988102,1751425870406,-490.0,0.0001808,2]
[368988103,1751425870416,-490.0,0.0001808,2]
[368988104,1751425870425,-984.67,0.0001808,2]
[368988105,1751425870434,-490.0,0.00018081,2]
[368988106,1751425870444,-490.0,0.00018081,2]
[368988107,1751425870454,-490.0,0.00018081,2]
[368988108,1751425870463,-490.0,0.00018081,2]
[368988109,1751425870473,-490.0,0.00018081,2]
[368988110,1751425870483,-490.0,0.00018081,2]
[368988111,1751425870493,-490.0,0.00018081,2]
[368988112,1751425870503,-490.0,0.00018081,2]
[368988113,1751425870513,-490.0,0.00018081,2]
[368988114,1751425870522,-250.31720944,0.00018081,2]
[368988115,1751425870532,-198.06,0.00018081,2]
[368988116,1751425870542,-490.0,0.00018081,2]
[368988117,1751425870551,-490.0,0.00018081,2]
[368988118,1751425870560,-490.0,0.00018081,2]
[368988119,1751425870570,-490.0,0.00018081,2]
[368988120,1751425870580,-490.0,0.00018081,2]
[368988121,1751425870589,-490.0,0.00018081,2]
[368988122,1751425870598,-490.0,0.00018081,2]
[368988123,1751425870607,-490.0,0.00018081,2]
[368988124,1751425870616,-588.74,0.00018081,2]
[368988125,1751425870626,-376.78,0.00018081,2]
[368988126,1751425870635,-200.49156332,0.00018081,2]
[368988127,1751425870644,-490.0,0.00018081,2]
[368988128,1751425870657,-490.0,0.00018081,2]
[368988129,1751425870667,-490.0,0.00018081,2]
[368988130,1751425870676,-490.0,0.00018081,2]
[368988131,1751425870685,-490.0,0.00018081,2]
[368988132,1751425870697,-421.85,0.00018081,2]
[368988133,1751425870707,-490.0,0.00018081,2]
[368988134,1751425870716,-490.0,0.00018081,2]
[368988135,1751425870726,-490.0,0.00018081,2]
[368988136,1751425870735,-490.0,0.00018081,2]
[368988137,1751425870745,-490.0,0.00018081,2]
[368988138,1751425870754,-490.0,0.00018081,2]
[368988139,1751425870763,-490.0,0.00018081,2]
[368988140,1751425870772,-490.0,0.00018081,2]
[368988141,1751425870781,-762.88,0.00018081,2]
[368988142,1751425870791,-490.0,0.00018081,2]
[368988143,1751425870800,-490.0,0.00018081,2]
[368988144,1751425870809,-212.69,0.00018081,2]
[368988145,1751425870818,-546.56,0.00018081,2]
[368988146,1751425870828,-490.0,0.00018081,2]
[368988147,1751425870837,-490.0,0.00018081,2]
[368988148,1751425870846,-490.0,0.00018081,2]
[368988149,1751425870855,-681.12,0.00018081,2]
[368988150,1751425870864,-1201.76,0.00018081,2]
[368988151,1751425870875,-435.11435251,0.00018081,2]
[368988152,1751425870884,-490.0,0.00018081,2]
[368988153,1751425870892,-490.0,0.00018081,2]
[368988154,1751425870901,-490.0,0.00018081,2]
[368988155,1751425870910,-490.0,0.00018081,2]
[368988156,1751425870919,-490.0,0.00018081,2]
[368988157,1751425870928,-490.0,0.00018081,2]
[368988158,1751425870937,-490.0,0.00018081,2]
[368988159,1751425870946,-490.0,0.00018081,2]
[368988160,1751425870955,-1121.74,0.00018081,2]
[368988161,1751425870964,-612.44,0.00018081,2]
[368988162,1751425870974,-490.0,0.00018081,2]
[368988163,1751425870983,-490.0,0.00018081,2]
[368988164,1751425870992,-490.0,0.00018081,2]
[368988165,1751425871001,-503.68,0.00018081,2]
[368988166,1751425871010,-490.0,0.00018081,2]
[368988167,1751425871020,-723.51,0.00018081,2]
[368988168,1751425871029,-402.04382768,0.00018081,2]
[368988169,1751425871038,-490.0,0.00018081,2]
[368988170,1751425871047,-231.98,0.00018081,2]
[368988171,1751425871056,-490.0,0.00018081,2]
[368988172,1751425871065,-490.0,0.00018081,2]
[368988173,1751425871075,-490.0,0.00018081,2]
[368988174,1751425871084,-1072.81,0.00018081,2]
[368988175,1751425871094,-490.0,0.00018081,2]
[368988176,1751425871103,-490.0,0.00018081,2]
[368988177,1751425871113,-490.0,0.00018081,2]
[368988178,1751425871122,-490.0,0.00018081,2]
[368988179,1751425871131,-490.0,0.00018081,2]
[368988180,1751425871140,-490.0,0.00018081,2]
[368988181,1751425871150,-1292.01,0.00018081,2]
[368988182,1751425871159,-490.0,0.00018081,2]
[368988183,1751425871172,-490.0,0.00018081,2]
[368988184,1751425871189,-724.77,0.00018081,2]
[368988185,1751425871203,-490.0,0.00018081,2]
[368988186,1751425871217,-490.0,0.00018081,2]
[368988187,1751425871231,-490.0,0.00018081,2]
[368988188,1751425871246,-490.0,0.00018081,2]
[368988189,1751425871262,-490.0,0.00018081,2]
[368988190,1751425871274,-490.0,0.00018081,2]
[368988191,1751425871288,-490.0,0.00018081,2]
[368988192,1751425871303,-490.0,0.00018081,2]
[368988193,1751425871318,-490.0,0.00018081,2]
[368988194,1751425871333,-490.0,0.00018081,2]
[368988195,1751425871348,-490.0,0.00018081,2]
[368988196,1751425871362,-490.0,0.00018081,2]
[368988197,1751425871378,-426.57636589,0.00018081,2]
[368988198,1751425871392,-611.77,0.00018081,2]
[368988199,1751425871406,-539.44085038,0.00018081,2]
[368988200,1751425871426,-818.32,0.00018081,2]
[368988201,1751425871445,-906.48,0.00018081,2]
[368988202,1751425871461,-490.0,0.00018081,2]
[368988203,1751425871475,-490.0,0.00018081,2]
[368988204,1751425871487,-759.77,0.00018081,2]
[368988205,1751425871502,-594.56,0.00018081,2]
[368988206,1751425871517,-490.0,0.00018081,2]
[368988207,1751425871528,-490.0,0.00018081,2]
[368988208,1751425871541,-490.0,0.00018081,2]
[368988209,1751425871558,-490.0,0.00018081,2]
[368988210,1751425871572,-490.0,0.00018081,2]
[368988211,1751425871584,-490.0,0.00018081,2]
[368988212,1751425871599,-490.0,0.00018081,2]
[368988213,1751425871613,-490.0,0.00018081,2]
[368988214,1751425871628,-340.94787451,0.00018081,2]
[368988215,1751425871643,-627.67,0.00018081,2]
[368988216,1751425871660,-490.0,0.00018081,2]
[368988217,1751425871673,-490.0,0.00018081,2]
[368988218,1751425871688,-490.0,0.00018081,2]
[368988219,1751425871702,-562.73,0.00018081,2]
[368988220,1751425871716,-490.0,0.00018081,2]
[368988221,1751425871731,-390.38332126,0.00018081,2]
[368988222,1751425871744,-490.0,0.00018081,2]